Cogmind - Beta 16 *** ADVENTURER MODE // 2025.11.16 @ 17:36:39 Player: Joe Result: Destroyed by PK-V73(R) with Subdweller Beam Cannon Performance ------------- Evolutions (0) 0 Regions Visited (2) 400 Robots Destroyed (11) 55 Value Destroyed (357) 357 Prototype IDs (0) 0 Alien Tech Used (0) 0 Bonus (0) 0 TOTAL SCORE: 812 Bonus ------- None Cogmind --------- Core Integrity 0/250 Matter 276/300 Energy 243/250 System Corruption 2% Temperature Cool (9) Movement Core (350) Ox6 Location -10/Subcaves Parts ------- > --- POWER (1) -------- Ion Engine > --- PROPULSION (2) --- (None) > --- UTILITY (2) ------ Medium Storage Unit Signal Interpreter > --- WEAPON (2) ------- Makeshift Laser Battle Rifle > --- INVENTORY (10) --- Ion Engine Ion Engine Medium Matter Pod (100) Small Laser Small Laser Subdweller Laser Subdweller Machine Gun Barrage Gun Battle Cannon Scrap Shield Fragment (49) Peak State ------------ > --- POWER ------------ Ion Engine > --- PROPULSION ------- (None) > --- UTILITY ---------- Medium Storage Unit Signal Interpreter > --- WEAPON ----------- Makeshift Laser Battle Rifle > --- INVENTORY -------- Ion Engine Ion Engine Medium Matter Pod Small Laser Small Laser Subdweller Machine Gun Barrage Gun Scrap Shield Fragment [Rating: 10] Favorites ----------- Power Ion Engine Engine Ion Engine Propulsion Light Treads Treads Light Treads Utility Medium Storage Unit Device Structural Scanner Storage Medium Storage Unit Processor Signal Interpreter Weapon Grenade Launcher Energy Gun Makeshift Laser Ballistic Gun Battle Rifle Launcher Grenade Launcher Special Weapon Flamer Build | -11 -10 -10 ------- Run | Yrd Mat Sub Slots Evolved . | . . . Power . | . . . Propulsion . | . . . Utility . | . . . Weapon . | . . . Parts Attached 16 | 7 3 6 Power 1 | 1 . . Engine 1 | 1 . . Core . | . . . Reactor . | . . . Propulsion 2 | 2 . . Treads 2 | 2 . . Leg . | . . . Wheel . | . . . Hover . | . . . Flight . | . . . Utility 4 | 1 2 1 Device 1 | . 1 . Storage 2 | 1 1 . Processor 1 | . . 1 Hackware . | . . . Protection . | . . . Artifact . | . . . Weapon 9 | 3 1 5 Energy Gun 2 | 1 . 1 Energy Cannon . | . . . Ballistic Gun 3 | 2 . 1 Ballistic Cannon . | . . . Launcher 3 | . 1 2 Special Weapon 1 | . . 1 Impact Weapon . | . . . Slashing Weapon . | . . . Piercing Weapon . | . . . Special Melee Weapon . | . . . Unidentified Prototypes . | . . . Parts Lost 6 | . . 6 Power . | . . . Propulsion 2 | . . 2 Utility 1 | . . 1 Weapon 3 | . . 3 Highest Loss Streak 2 | . . 2 To Critical Strikes . | . . . Average Backups 8 | 1 7 9 Power 2 | . 2 2 Propulsion . | . . . Utility 1 | . 1 1 Weapon 5 | . 3 5 Tool/Special . | . . . Unused Backups 14 | . 3 11 Power 4 | . . 4 Propulsion . | . . . Utility 4 | . 3 1 Weapon 6 | . . 6 Tool/Special . | . . . Average Slot Usage (%) 80 | . 97 78 Engine 14 | . 14 14 Treads 9 | . 28 7 Device 3 | . 11 2 Storage 14 | . 14 14 Processor 10 | . . 11 Energy Gun 6 | . 13 5 Ballistic Gun 9 | . 14 8 Launcher 7 | . . 8 Special Weapon 4 | . . 5 Peak Build Rating 10 | 6 8 10 Average Rating 8 | 4 7 8 On Entrance 4 | . 6 8 Avg Prop Armor Cover (%) . | . . . Naked Turns . | . . . Heaviest Build 21 | 13 21 21 Greatest Support 40 | 40 40 40 Greatest Overweight (x) 6 | . . 6 Average Overweight (x) 2 | . . 3 Largest Inventory Capacity 10 | 8 10 10 Average Capacity 9 | 6 9 10 Most Carried 10 | 3 10 10 Average Carried 9 | 1 7 9 Final Capacity 10 | 8 10 10 Final Carried 10 | 2 10 10 Class Distribution -------------------- 100% | Mutant Dominant Class ---------------- Mutant | -10/Materials Mutant | -10/Subcaves Resources | -11 -10 -10 ----------- Run | Yrd Mat Sub Matter Collected 811 | 188 . 623 Remotely . | . . . Salvage Created 237 | . . 237 Parts 25 | . . 25 Haulers Intercepted . | . . . Recyclers Shooed . | . . . Parts Field Recycled . | . . . Retrieved Matter . | . . . Parts Self-Destructed 14 | . . 14 Prevented . | . . . Parts Restored . | . . . Kills | -11 -10 -10 ------- Run | Yrd Mat Sub Combat Hostiles Destroyed 11 | . . 11 Guns 2 | . . 2 AOE 9 | . . 9 Classes Destroyed 3 | . . 3 Swarmer 3 | . . 3 Grunt 1 | . . 1 Subdweller 7 | . . 7 Best Kill Streak 4 | . . 4 Combat Bots Only 4 | . . 4 Max Kills in Single Turn 3 | . . 3 Gunslinging . | . . . Exploded 3 | . . 3 Melee . | . . . Uniques/NPCs Destroyed . | . . . Combat | -11 -10 -10 -------- Run | Yrd Mat Sub Hostile Shots Fired 52 | . . 52 Missed 14 | . . 14 Hits 38 | . . 38 Projectile 38 | . . 38 AOE 3 | . . 3 Critical Strikes 1 | . . 1 Damage Taken 901 | . 20 881 Core 251 | . . 251 Absorbed by Shields . | . . . Ignored by Resistances 220 | . 5 215 Regen/Repaired (Parts) 45 | . 45 . Core Remaining (%) 100 | 100 . . Volleys Fired 38 | . 2 36 Largest 2 | . 2 2 Hottest 130 | . 60 130 Shots Fired 61 | . 4 57 Gun 32 | . 3 29 Cannon . | . . . Launcher 27 | . 1 26 Special 2 | . . 2 Kinetic 24 | . 2 22 Thermal 10 | . 1 9 Explosive 27 | . 1 26 Electromagnetic . | . . . Robot Hit Streak 8 | . . 8 Robot Miss Streak 1 | . . 1 Penetration Max . | . . . Secondary Targets . | . . . Shots Hit Robots 27 | . . 27 Core Hits 21 | . . 21 Critical Kills . | . . . Critical Parts Destroyed . | . . . Critical Strikes . | . . . Melee Attacks . | . . . Impact . | . . . Slashing . | . . . Piercing . | . . . Sneak Attacks . | . . . Combat Hostiles . | . . . Follow-up Attacks . | . . . Damage Inflicted 1284 | . 11 1273 Guns 221 | . . 221 Cannons . | . . . Explosions 1052 | . . 1052 Melee . | . . . Ramming 11 | . 11 . Kinetic 153 | . . 153 Thermal 68 | . . 68 Explosive 1052 | . . 1052 Electromagnetic . | . . . Impact . | . . . Slashing . | . . . Piercing . | . . . Highest Corruption 2 | . 2 2 Average Corruption 1 | . 1 2 Corruption Purged . | . . . Corruption Blocked . | . . . Effects 45 | . 3 42 Message Errors 15 | . 1 14 Matter Fused 9 | . 1 8 Heat Flow Errors 5 | . . 5 Energy Discharges 2 | . 1 1 Parts Fused 1 | . . 1 Data Loss (minor) 7 | . . 7 Data Loss (major) 4 | . . 4 Alerts 2 | . . 2 Overload Shots . | . . . Overflow Damage 11 | . . 11 Projectiles . | . . . Explosions 11 | . . 11 Melee . | . . . Knockbacks . | . . . Impact . | . . . Kinetic . | . . . Secondary . | . . . Self-Inflicted Damage 118 | . 20 98 Shots 6 | . 1 5 Rammed 1 | . 1 . Targets Rammed 1 | . 1 . Kicked . | . . . Crushed . | . . . Highest Temperature 182 | . . 182 Average Temperature 84 | . . 84 Received Heat Transfer 129 | . . 129 Siege Activations . | . . . Martial Activations . | . . . Shielding Activations . | . . . Robots Disrupted . | . . . Combat Hostiles . | . . . Robots Corrupted . | . . . Combat Hostiles . | . . . Parts Fried . | . . . Impact Corruptions . | . . . Robots Melted . | . . . Combat Hostiles . | . . . Parts Melted . | . . . Heat Transferred 148 | . . 148 Parts Sabotaged . | . . . Parts Stolen . | . . . Parts Stripped . | . . . Power Chain Reactions . | . . . Alert | -11 -10 -10 ------- Run | Yrd Mat Sub Maximum Alert Level . | . . . Low Security (%) 100 | 100 100 . Level 1 . | . . . Level 2 . | . . . Level 3 . | . . . Level 4 . | . . . Level 5 . | . . . High Security . | . . . Max Security . | . . . Peak Influence 10 | . 10 . Initial . | . . . Average . | . . . Influence Increases 147 | . 17 130 Destroy 0b10 Robot/C 80 | . . 80 Destroy Leader 20 | . . 20 Successful Hack 7 | . 7 . Destroy Structure 10 | . 10 . Lose Combat Pursuer 30 | . . 30 Influence Decreases 147 | . 17 130 Time Decay 127 | . 17 110 Lost Part 20 | . . 20 Squads Dispatched . | . . . Investigation . | . . . Extermination . | . . . Reinforcement . | . . . Assault . | . . . Garrison . | . . . Intercept . | . . . Searches Triggered . | . . . Construction Impeded . | . . . Haulers Reinforced . | . . . Active Scanning Responses . | . . . Cargo Convoy Interrupts . | . . . Stealth | -11 -10 -10 --------- Run | Yrd Mat Sub Distress Signals . | . . . Communications Jammed . | . . . Distress Signals . | . . . Times Spotted 17 | . 1 16 Peak Tracking Total 4 | . 1 4 Tactical Retreats 1 | . . 1 Traps | -11 -10 -10 ------- Run | Yrd Mat Sub Traps Triggered 5 | . 3 2 Indirectly . | . . . Trap Hack Attempts . | . . . Triggered . | . . . Disarmed . | . . . Reprogrammed . | . . . Reused . | . . . Traps Extracted . | . . . Installed . | . . . Triggered . | . . . Machines | -11 -10 -10 ---------- Run | Yrd Mat Sub Machines Disabled . | . . . Max in Single Turn . | . . . Machines Repaired . | . . . Machines Dismantled . | . . . Machines Sabotaged . | . . . Overloaded Fab Kills . | . . . Hacking | -11 -10 -10 --------- Run | Yrd Mat Sub Machines Accessed 3 | . 3 . Terminals 1 | . 1 . Fabricators . | . . . Repair Stations 1 | . 1 . Recycling Units 1 | . 1 . Scanalyzers . | . . . Garrison Access . | . . . Total Hacks 9 | . 9 . Successful 5 | . 5 . Failed 4 | . 4 . Catastrophic . | . . . Database Lockouts . | . . . Manual . | . . . Terminals 3 | . 3 . Fabricators . | . . . Repair Stations 3 | . 3 . Recycling Units 3 | . 3 . Scanalyzers . | . . . Garrison Access . | . . . Terminal Hacks 2 | . 2 . Branch Access Points 1 | . 1 . Alert Level 1 | . 1 . Fabricator Hacks . | . . . Repair Station Hacks 2 | . 2 . Scan Component 1 | . 1 . Repair 1 | . 1 . Recycling Unit Hacks 1 | . 1 . Retrieve Components 1 | . 1 . Scanalyzer . | . . . Garrison Access Hacks . | . . . Unauthorized Hacks . | . . . Terminals . | . . . Fabricators . | . . . Repair Stations . | . . . Recycling Units . | . . . Scanalyzers . | . . . Garrison Access . | . . . Data Cores Recovered . | . . . Used . | . . . Hacking Detections 3 | . 3 . Full Trace Events . | . . . Feedback Events . | . . . Feedback Blocked . | . . . Robot Schematics Acquired . | . . . Robots Built . | . . . Authchips . | . . . Time . | . . . Total Robot Build Rating . | . . . Part Schematics Acquired . | . . . Parts Built . | . . . Authchips . | . . . Time . | . . . Total Part Build Rating . | . . . Part Studies Acquired . | . . . Parts Repaired 1 | . 1 . Time 26 | . 26 . Parts Recycled . | . . . Recycled Matter . | . . . Retrieved Matter . | . . . Retrieved Components 3 | . 3 . Parts Scanalyzed . | . . . Part Schematics Acquired . | . . . Parts Damaged . | . . . Bothacking | -11 -10 -10 ------------ Run | Yrd Mat Sub Used RIF Installer . | . . . Robots Hacked . | . . . Non-combat . | . . . Combat . | . . . Robot Hacks Applied . | . . . Relay Couplers Released . | . . . Fabnet Peak Effective % . | . . . Robots Rewired . | . . . Allies Hacked . | . . . Hacks Repelled . | . . . Allies | -11 -10 -10 -------- Run | Yrd Mat Sub Total Allies . | . . . Largest Group . | . . . Highest-Rated Group . | . . . Highest-Rated Ally . | . . . Total Orders . | . . . Ally Attacks . | . . . Total Damage . | . . . Kills . | . . . Allies Corrupted . | . . . Allies Melted . | . . . Intel | -11 -10 -10 ------- Run | Yrd Mat Sub Active Infowar (turns) 851 | . 355 496 Structural 851 | . 355 496 Robot Analysis Total . | . . . Derelict Logs Recovered 3 | . . 3 Drone Launches . | . . . Drone Recoveries . | . . . Exploration | -11 -10 -10 ------------- Run | Yrd Mat Sub Turns Passed 3932 | 81 422 3429 Spaces Moved 1533 | 49 231 1253 Core 700 | 11 . 689 Treads 833 | 38 231 564 Legs . | . . . Wheels . | . . . Hover . | . . . Flight . | . . . Fastest Speed 50 | 50 160 160 Average Speed 244 | 135 160 264 Slowest Speed 350 | 160 160 350 Overloaded Moves . | . . . Propulsion Burnouts . | . . . Robots Hopped . | . . . Potential Cave-ins 5 | . . 5 Cave-ins Triggered . | . . . Exploration Rate (%) 32 | 5 35 58 Regions Visited 2 Branch Regions 1 Pre-discovered Areas . | . . . Known Exits Taken . | . . . Unknown Exits Taken 2 | 1 1 . Scrap Searched 5 | . . 5 Spaces Dug 9 | . 9 . Terrain Destroyed 104 | . 9 95 Melee . | . . . Projectile . | . . . AOE 104 | . 9 95 Terrain Rammed . | . . . Walls Destroyed . | . . . Machines Disabled . | . . . Actions | -11 -10 -10 --------- Run | Yrd Mat Sub Total 1654 | 63 280 1311 Wait 26 | . 26 . Move 1531 | 48 230 1253 Hop . | . . . Pick Up 32 | 8 14 10 Fast Attach . | . . . Attach 12 | 6 2 4 Detach . | . . . Swap 4 | 1 1 2 Drop 10 | . 4 6 Fire 38 | . 2 36 Melee . | . . . Ram . | . . . Kick . | . . . Crush 1 | . 1 . Escape Stasis . | . . . Rewire . | . . . Trap . | . . . Miscellaneous . | . . . Route ------- -11/Scrapyard -10/Materials (discovered 3 exits: [*Mat] / Min / [*Sub]) -10/Subcaves (discovered 2 exits: *Mat / Rec) History --------- Turn | Location | Event 6 | -11/Scrapyard | Discovered new exit (range 15) 82 | -11/Scrapyard | Entered Materials 311 | -10/Materials | Build established: Mutant 325 | -10/Materials | Identified exit to Mines 377 | -10/Materials | Repaired Grenade Launcher 405 | -10/Materials | Discovered new exit (range 7) 406 | -10/Materials | Discovered new exit (range 3) 504 | -10/Materials | Entered Subcaves 988 | -10/Subcaves | Ambushed by Subdweller buried in earth 1006 | -10/Subcaves | Core integrity fell below 50% 1420 | -10/Subcaves | Learned location of 1 exit from Materials 1805 | -10/Subcaves | Shifting Twisted Machinery released Mak. Laser 1807 | -10/Subcaves | Learned 2 Materials zone layouts 2172 | -10/Subcaves | Discovered new exit (range 11) 2200 | -10/Subcaves | Identified exit to Recycling 2207 | -10/Subcaves | Identified exit to Materials 2513 | -10/Subcaves | Core integrity fell below 20% 2671 | -10/Subcaves | A swath of the cavern ceiling suddenly collapsed 3933 | -10/Subcaves | Destroyed by PK-V73(R) with Subdweller Beam Cannon Last Messages --------------- 02805_ System corrupted: Component data lost. 02917_ WT|N L 9DT7LTLHLY6I/QHYU|WO714T 02999_ Acquired 3 matter. 03054_ System corrupted: Heat flow error (+209). 03220_ System corrupted: Component data lost. 03265_ UETHFXYA1 JDYOR1FP3RJBP%#KGW 03280_ System corrupted: Matter fused (-6). 03370_ Triggered Piercing Trap. 03370_ Spikes shoot up from the floor. 03370_ Critical hit (Impale). 03403_ System corrupted: Matter fused (-5). 03556_ 8RG3BZ|7EG#W:GQUWKVGE%>JOR TAKZX 03586_ System corrupted: Matter fused (-10). 03655_ KSJTQVHUJHAN UYX2PXK5ECP 03736_ System corrupted: Substantial component data lost. 03799_ System corrupted: Component data lost. 03847_ System corrupted: Heat flow error (+156). 03929_ PK-V73(R): "SUBHATE!" Map ----- +----------------------------------------------------+ | ??????????????#" # ##???????????????????????? | | ??????????????### # ####????????????????????????? | | ????????????????# # ##??????????????????????????? | | ??????#####?????# # ##?????????????????????????? | | ####### ####### ##????????????????????????? | | ## #????????????????????????? | | ^ ?????????????????? | | ### #### ???????????????? | | ##### ### #####???# #???????????????? | | #???###### ^ #???????# ##????????????????? | | #???????# #??###???# ##?????????????????? | | #???????# #?# ????? ##??????????????????? | | ????????# ##? #??????##???????????????????? | | ???????## #?# ????????????????????????????? | | ???????# ### #?####?????###???????????????? | | ???????# ####? ## #?##### #???????????????? | | ???????## ##??## ### #???????????????? | | ???????## ##?## ## #???????????????? | | ??????## ### #?# ##???????????????? | | ??????# #??# ###????????????????? | | ###???# ^ #?##### #??????????????????? | | #???# ###### ### ##?????????????????? | | ##??###### ##???# ########????###???? | | ##??????# #????# ^ #?#### ##### | | #??????# #????# ### ## | | #??????# #????# @ #### | | #??????##### ###### ## ^ ### ## | | #??????????# ## ^ #?#### | | #?????????## R ^ ^ #?# # | | ##?????????# ^ ## ## | | ####?????????## ###### ^ | | ##????????#### ##???## ### ### | | #??????### ##????# ### ##?# ##?? | | #??????# ##?????## ###?#####??# #??? | | #??????## ## ##???????####?????????# ##??? | | ##???????###########?????????????????????#####???? | | ?????????????????????????????????????????????????? | | ?????????????????????????????????????????????????? | | ?????????????????????????????????????????????????? | | ?????????????????????????????????????????????????? | | ?????????????????????????????????????????????????? | | ?????????????????????????????????????????????????? | | ?????????????????????????????????????????????????? | | ?????????????????????????????????????????????????? | | ?????????????????????????????????????????????????? | | ?????????????????????????????????????????????????? | | ?????????????????????????????????????????????????? | | ?????????????????????????????????????????????????? | | ?????????????????????????????????????????????????? | | ?????????????????????????????????????????????????? | +----------------------------------------------------+ Best States ------------- Heat Dissipation 25 Energy Generation 10 Energy Capacity 250 Matter Stores 300 Matter Capacity 300 Sight Range 16 Terrain Scan Density 10 Resistance: KI 20 Resistance: TH 20 Resistance: EX 20 Resistance: EM 20 Resistance: I 20 Resistance: S 20 Resistance: P 20 Evasion (%) 50 Recoil Reduction 2 Offensive Hacking 10 Item Schematics ----------------- None Robot Schematics ------------------ None Fabricated ------------ Nothing Repaired ---------- Grenade Launcher | 25% | -10/Materials Studied --------- None Alien Tech Used ----------------- None Achievements -------------- None Challenges ------------ None Game ------ Seed ContainmentCryofiberTether Manual? 0 Play Time 00:15:03 Cumulative 253.8 hours Start 2025.11.16 @ 17:22:58 End 2025.11.16 @ 17:36:39 Sessions 3 Manual Loads 0 Difficulty Adventurer Special Mode None Game No. 65 Rogue 0 Adventurer 65 Explorer 0 Win Type - Total 1 Types 0/0/0/1/0/0/0/0/0/0 Lore% 49 Gallery% 54 Achievement% 37 Wizard Run 0 Options --------- Layout 1 ASCII 0 Keyboard 0 Movement Numpad Keybinds 0 Fullscreen 1 Font 24/Smallcaps Map View 50x35 Zoom Use 0% Tactical HUD 1 Map Filters NONE Filters NONE Steam 0 RUN: 8bcb0dd6-619e-4df6-8e93-a269000f7744